fUSD/lending_fUSD_20251229
["ID","MTS","AMOUNT","RATE_DAILY","PERIOD"]
[399997657,1766997046014,-500.0,0.00016999,2]
[399997658,1766997046024,-468.04981383,0.00016999,2]
[399997659,1766997046033,-500.0,0.00016999,2]
[399997660,1766997046043,-500.0,0.00016999,2]
[399997661,1766997046053,-500.0,0.00016999,2]
[399997662,1766997046064,-500.0,0.00016999,2]
[399997664,1766997046073,-500.0,0.00016999,2]
[399997665,1766997046083,-500.0,0.00016999,2]
[399997667,1766997046092,-500.0,0.00016999,2]
[399997668,1766997046102,-500.0,0.00016999,2]
[399997669,1766997046112,-500.0,0.00016999,2]
[399997670,1766997046122,-513.78282207,0.00016999,2]
[399997671,1766997046132,-500.0,0.00016999,2]
[399997672,1766997046141,-500.0,0.00016999,2]
[399997673,1766997046151,-500.0,0.00016999,2]
[399997674,1766997046161,-500.0,0.00016999,2]
[399997675,1766997046170,-500.0,0.00016999,2]
[399997676,1766997046180,-500.0,0.00016999,2]
[399997677,1766997046190,-493.06,0.00016999,2]
[399997678,1766997046201,-300.0,0.00016999,2]
[399997679,1766997046211,-500.0,0.00016999,2]
[399997680,1766997046221,-500.0,0.00016999,2]
[399997681,1766997046231,-500.0,0.00016999,2]
[399997683,1766997046240,-500.0,0.00016999,2]
[399997685,1766997046251,-502.24903103,0.00016999,2]
[399997686,1766997046260,-300.0,0.00016999,2]
[399997687,1766997046270,-500.0,0.00016999,2]
[399997688,1766997046279,-500.0,0.00016999,2]
[399997689,1766997046290,-500.0,0.00016999,2]
[399997690,1766997046299,-500.0,0.00016999,2]
[399997691,1766997046309,-500.0,0.00016999,2]
[399997692,1766997046318,-500.0,0.00016999,2]
[399997693,1766997046328,-412.05066117,0.00016999,2]
[399997694,1766997046338,-578.96930292,0.00016999,2]
[399997695,1766997046349,-500.0,0.00016999,2]
[399997696,1766997046358,-500.0,0.00016999,2]
[399997697,1766997046368,-500.0,0.00016999,2]
[399997698,1766997046377,-500.0,0.00016999,2]
[399997699,1766997046386,-500.0,0.00016999,2]
[399997700,1766997046396,-500.0,0.00016999,2]
[399997701,1766997046405,-500.0,0.00016999,2]
[399997702,1766997046414,-500.0,0.00016999,2]
[399997703,1766997046424,-286.76446351,0.00016999,2]
[399997704,1766997046433,-500.0,0.00016999,2]
[399997705,1766997046443,-500.0,0.00016999,2]
[399997706,1766997046454,-500.0,0.00016999,2]
[399997707,1766997046463,-500.0,0.00016999,2]
[399997708,1766997046472,-500.0,0.00016999,2]
[399997709,1766997046481,-500.0,0.00016999,2]
[399997710,1766997046491,-500.0,0.00016999,2]
[399997711,1766997046500,-500.0,0.00016999,2]
[399997712,1766997046510,-500.0,0.00016999,2]
[399997713,1766997046519,-561.12,0.00016999,2]
[399997714,1766997046528,-500.0,0.00016999,2]
[399997715,1766997046538,-500.0,0.00016999,2]
[399997716,1766997046548,-500.0,0.00016999,2]
[399997717,1766997046557,-510.32017252,0.00016999,2]
[399997718,1766997046567,-300.0,0.00016999,2]
[399997719,1766997046576,-500.0,0.00016999,2]
[399997720,1766997046586,-500.0,0.00016999,2]
[399997721,1766997046595,-500.0,0.00016999,2]
[399997722,1766997046605,-500.0,0.00016999,2]
[399997724,1766997046615,-500.0,0.00016999,2]
[399997726,1766997046624,-296.93519622,0.00016999,2]
[399997727,1766997046633,-500.0,0.00016999,2]
[399997728,1766997046642,-500.0,0.00016999,2]
[399997729,1766997046653,-500.0,0.00016999,2]
[399997730,1766997046662,-500.0,0.00016999,2]
[399997731,1766997046673,-500.0,0.00016999,2]
[399997732,1766997046682,-500.0,0.00016999,2]
[399997733,1766997046692,-500.0,0.00016999,2]
[399997734,1766997046701,-500.0,0.00016999,2]
[399997735,1766997046710,-414.72,0.00016999,2]
[399997736,1766997046720,-500.0,0.00016999,2]
[399997737,1766997046880,-500.0,0.00016999,2]
[399997738,1766997046890,-500.0,0.00016999,2]
[399997739,1766997046900,-300.0,0.00016999,2]
[399997740,1766997046911,-395474.83092297,0.00017,2]
[399997741,1766997046931,-1359.71344481,0.00017,2]
[399997742,1766997046944,-727.40483639,0.00017,2]
[399997743,1766997046957,-18006.44603249,0.00017,2]
[399997744,1766997046973,-463.67418489,0.00017,2]
[399997745,1766997046984,-1064491.3774709,0.00017,2]
[399997746,1766997047037,-500.0,0.00014049,2]
[399997747,1766997047047,-500.0,0.00014076,2]
[399997748,1766997047057,-427.0,0.00014515,2]
[399997749,1766997047066,-56485.89630906,0.00017,2]
[399997750,1766997047364,-500.0,0.00014104,2]
[399997751,1766997047374,-464.62808502,0.00014131,2]
[399997752,1766997047384,-427.0,0.00014542,2]
[399997753,1766997047393,-427.0,0.00014569,2]
[399997754,1766997047403,-904.0,0.00014597,2]
[399997755,1766997047412,-8985.55701774,0.00017,2]
[399997756,1766997047425,-4762.08472049,0.00017,2]
[399997757,1766997047436,-4481.67,0.00017,2]
[399997758,1766997047448,-500.26942254,0.00017,2]
[399997759,1766997047477,-637.41718911,0.00017,2]
[399997760,1766997047489,-1796.97144954,0.00017,2]
[399997761,1766997047504,-48000.08552023,0.00017,2]
[399997762,1766997047516,-2000.0,0.00017,2]
[399997763,1766997047544,-916.76665927,0.00014624,2]
[399997764,1766997047554,-6115.25128322,0.00017,2]
[399997774,1766997105527,591.95057943,0.00030137,120]
[399997785,1766997668385,-265.0,0.00013912,2]
[399997786,1766997668411,-922.0,0.00013912,2]
[399997787,1766997694277,-352.25,0.00013699,2]
[399997788,1766997694305,-1968.132,0.00013732,2]
[399997789,1766997694332,-150.831,0.00013732,2]
[399997790,1766997694357,-230.9363,0.00013912,2]
[399997791,1766997694382,-1886.1374,0.00013912,2]
[399997792,1766997694409,-753.7133,0.00013912,2]
[399997801,1766997723595,-429.5489,0.00013912,2]
[399997802,1766997723623,-1309.0356,0.00013912,2]
[399997803,1766997723648,-236.1517,0.00013912,2]
[399997804,1766997723674,-250.0,0.00013926,2]
[399997805,1766997723702,-300.0,0.00013939,2]
[399997806,1766997723729,-300.0,0.00013939,2]
[399997807,1766997723755,-3977.7310615,0.0001394,2]
[399997808,1766997723781,-7525.5327385,0.0001394,2]
[399997809,1766997739512,178.47470321,0.00014011,5]
[399997810,1766997739548,917.78758471,0.00014011,5]
[399997811,1766997739576,130.03914952,0.00014011,5]
[399997812,1766997760836,168.15,0.00011534,2]
[399997831,1766998201506,153.0,0.000301,120]
[399997832,1766998208044,-168.15,0.00013457,2]
[399997833,1766998208068,-574.08662498,0.00013476,2]
[399997834,1766998209120,153.0,0.000301,120]
[399997835,1766998212601,-178.76480256,0.00013476,2]
[399997836,1766998214170,-250.0,0.00013476,2]
[399997837,1766998216929,-238.0,0.00013476,2]
[399997838,1766998219725,-438.29519744,0.00013476,2]
[399997839,1766998221185,-195.36341331,0.00013476,2]
[399997845,1766998231397,-887.52956503,0.00013476,2]
[399997846,1766998231409,-453.95773948,0.00013476,2]
[399997847,1766998231420,-479.58345571,0.00013476,2]
[399997848,1766998231431,-434.57723662,0.00013476,2]
[399997849,1766998231442,-932.78264644,0.00013476,2]
[399997850,1766998231453,-349.17285286,0.00013476,2]
[399997851,1766998231463,-3943.64646557,0.00013476,2]
[399997852,1766998231472,-250.0,0.00013696,2]
[399997853,1766998231482,-159.40048075,0.00013839,2]
[399997854,1766998231492,-595.39101437,0.00013903,2]
[399997855,1766998231502,-197.16729231,0.00013903,2]
[399997856,1766998231511,-11164.889747,0.00013904,2]
[399997857,1766998231522,-3029.16790695,0.00013904,2]
[399997858,1766998231536,-1331.28839075,0.00013904,2]
[399997860,1766998231547,-436.60011272,0.00013904,2]
[399997862,1766998231558,-4354.95588453,0.00013904,2]
[399997863,1766998231570,-7392.65232999,0.00013904,2]
[399997882,1766998237418,-150.84837461,0.00013903,2]
[399997883,1766998237427,-198.20762539,0.00013903,2]
[399997884,1766998237525,-301.79237461,0.00013903,2]
[399997885,1766998237534,-241.78652855,0.00013903,2]
[399997886,1766998237546,-258.21347145,0.00013903,2]
[399997887,1766998237555,-500.0,0.00013903,2]
[399997888,1766998237565,-500.0,0.00013903,2]
[399997889,1766998237576,-60.17327253,0.00013903,2]
[399997890,1766998237591,-439.82672747,0.00013903,2]
[399997891,1766998237601,-634.83867714,0.00013903,2]
[399997892,1766998237610,-245.8214218,0.00013903,2]
[399997893,1766998237639,-254.1785782,0.00013903,2]
[399997894,1766998237649,-500.0,0.00013903,2]
[399997895,1766998237658,-500.0,0.00013903,2]
[399997896,1766998237668,-80.82142601,0.00013904,2]
[399998007,1766998239480,-653.76080498,0.00013904,2]
[399998008,1766998239492,-814.96786243,0.00013904,2]
[399998009,1766998239503,-534.0,0.00013904,2]
[399998010,1766998239539,-2280.9972858,0.00013904,2]
[399998011,1766998239550,-1956.161805,0.00013904,2]
[399998012,1766998239559,-21041.45799257,0.00013904,2]
[399998013,1766998239569,-4348.12435315,0.00013904,2]
[399998014,1766998239584,-5350.87,0.00013904,2]
[399998026,1766998239830,-935229.28409812,0.00013904,2]
[399998028,1766998239839,-362.92981829,0.00013935,2]
[399998030,1766998239849,-300.0,0.00013939,2]
[399998033,1766998239859,-3579.95795535,0.0001394,2]
[399998035,1766998239871,-163.88,0.00014,2]
[399998037,1766998239880,-150.0,0.00014003,2]
[399998039,1766998239889,-200.0,0.00014004,2]
[399998041,1766998239899,-500.0,0.00014004,2]
[399998042,1766998239908,-500.0,0.00014004,2]
[399998044,1766998239917,-500.0,0.00014004,2]
[399998045,1766998239926,-500.0,0.00014004,2]
[399998046,1766998239935,-500.0,0.00014004,2]
[399998047,1766998239944,-500.0,0.00014004,2]
[399998048,1766998239953,-500.0,0.00014004,2]
[399998049,1766998239962,-500.0,0.00014004,2]
[399998050,1766998239971,-500.0,0.00014004,2]
[399998051,1766998239980,-500.0,0.00014004,2]
[399998052,1766998239989,-500.0,0.00014004,2]
[399998053,1766998239998,-500.0,0.00014004,2]
[399998054,1766998240007,-500.0,0.00014004,2]
[399998055,1766998240016,-500.0,0.00014004,2]
[399998056,1766998240026,-200.0,0.00014004,2]
[399998057,1766998240036,-500.0,0.00014004,2]
[399998058,1766998240045,-500.0,0.00014004,2]
[399998059,1766998240054,-500.0,0.00014004,2]
[399998060,1766998240064,-158.94819316,0.00014004,2]
[399998061,1766998240073,-151.0,0.00014004,2]
[399998062,1766998240083,-151.0,0.00014004,2]
[399998063,1766998240092,-200.0,0.00014004,2]
[399998064,1766998240101,-151.0,0.00014004,2]
[399998065,1766998240111,-151.0,0.00014004,2]
[399998066,1766998240120,-151.0,0.00014004,2]
[399998067,1766998240129,-151.0,0.00014004,2]
[399998068,1766998240138,-151.0,0.00014004,2]
[399998069,1766998240147,-151.0,0.00014004,2]
[399998070,1766998240157,-151.0,0.00014004,2]
[399998071,1766998240166,-500.0,0.00014004,2]
[399998072,1766998240175,-335.26105309,0.00014004,2]
[399998073,1766998240185,-685.34,0.00014004,2]
[399998074,1766998240194,-151.0,0.00014009,2]
[399998075,1766998240204,-151.0,0.00014009,2]
[399998076,1766998240214,-151.0,0.00014009,2]
[399998077,1766998240223,-199.92361114,0.00014011,2]
[399998078,1766998240232,-500.0,0.00014011,2]
[399998079,1766998240242,-500.0,0.00014011,2]
[399998080,1766998240251,-500.0,0.00014011,2]
[399998081,1766998240261,-500.0,0.00014011,2]
[399998082,1766998240270,-500.0,0.00014011,2]
[399998083,1766998240280,-500.0,0.00014011,2]
[399998084,1766998240289,-500.0,0.00014011,2]
[399998085,1766998240298,-500.0,0.00014011,2]
[399998086,1766998240308,-238.33319847,0.00014011,2]
[399998087,1766998240317,-500.0,0.00014011,2]
[399998088,1766998240326,-500.0,0.00014011,2]
[399998089,1766998240336,-500.0,0.00014011,2]
[399998090,1766998240345,-500.0,0.00014011,2]
[399998091,1766998240355,-500.0,0.00014011,2]
[399998092,1766998240364,-500.0,0.00014011,2]
[399998093,1766998240373,-500.0,0.00014011,2]
[399998094,1766998240383,-500.0,0.00014011,2]
[399998095,1766998240394,-500.0,0.00014011,2]
[399998096,1766998240404,-500.0,0.00014011,2]
[399998097,1766998240413,-500.0,0.00014011,2]
[399998098,1766998240422,-595.20438035,0.00014011,2]
[399998099,1766998240432,-500.0,0.00014011,2]
[399998100,1766998240442,-500.0,0.00014011,2]
[399998101,1766998240452,-500.0,0.00014011,2]
[399998102,1766998240462,-500.0,0.00014011,2]
[399998103,1766998240473,-500.0,0.00014011,2]
[399998104,1766998240482,-500.0,0.00014011,2]
[399998105,1766998240491,-500.0,0.00014011,2]
[399998106,1766998240500,-325.50708254,0.00014011,2]
[399998107,1766998240509,-500.0,0.00014011,2]
[399998108,1766998240519,-500.0,0.00014011,2]
[399998109,1766998240528,-500.0,0.00014011,2]
[399998110,1766998240537,-500.0,0.00014011,2]
[399998111,1766998240547,-500.0,0.00014011,2]
[399998112,1766998240556,-500.0,0.00014011,2]
[399998113,1766998240566,-500.0,0.00014011,2]
[399998114,1766998240576,-500.0,0.00014011,2]
[399998115,1766998240587,-500.0,0.00014011,2]
[399998116,1766998240597,-500.0,0.00014011,2]
[399998117,1766998240606,-500.0,0.00014011,2]
[399998118,1766998240615,-500.0,0.00014011,2]
[399998119,1766998240626,-1000.0,0.00014035,2]
[399998120,1766998240635,-1000.0,0.0001404,2]
[399998121,1766998240644,-6021.1738,0.0001404,2]
[399998122,1766998240658,-200.0,0.00014084,2]
[399998123,1766998240667,-183.29,0.00014123,2]
[399998124,1766998240676,-500.0,0.0001414,2]
[399998125,1766998240685,-500.0,0.0001414,2]
[399998126,1766998240694,-587.42809654,0.0001414,2]
[399998127,1766998240703,-3579.95795526,0.00014269,2]
[399998128,1766998240712,-685.34,0.00014278,2]
[399998129,1766998240723,-1122.6638685,0.00014487,2]
[399998130,1766998240736,-4916.89398034,0.00014487,2]
[399998131,1766998240745,-503.17467332,0.00014487,2]
[399998132,1766998240754,-500.0,0.00014487,2]
[399998133,1766998240763,-500.0,0.00014487,2]
[399998134,1766998240773,-500.0,0.00014487,2]
[399998135,1766998240782,-500.0,0.00014487,2]
[399998136,1766998240791,-500.0,0.00014487,2]
[399998137,1766998240800,-500.0,0.00014487,2]
[399998138,1766998240809,-500.0,0.00014487,2]
[399998139,1766998240818,-500.0,0.00014487,2]
[399998140,1766998240826,-500.0,0.00014487,2]
[399998141,1766998240836,-500.0,0.00014487,2]
[399998142,1766998240845,-500.0,0.00014487,2]
[399998143,1766998240854,-313.70462567,0.00014487,2]
[399998144,1766998240864,-400.0,0.00014487,2]
[399998145,1766998240873,-200.0,0.00014552,2]
[399998146,1766998240881,-500.0,0.00014552,2]
[399998147,1766998240891,-685.34,0.00014552,2]
[399998148,1766998240900,-500.0,0.00014573,2]
[399998149,1766998240908,-504.42223695,0.00014573,2]
[399998150,1766998240918,-547.46538815,0.00014573,2]
[399998151,1766998240926,-500.0,0.00014573,2]
[399998152,1766998240935,-506.70149781,0.00014573,2]
[399998153,1766998240944,-500.0,0.00014573,2]
[399998154,1766998240953,-502.33266332,0.00014573,2]
[399998155,1766998240962,-500.0,0.00014573,2]
[399998156,1766998240971,-500.0,0.00014573,2]
[399998157,1766998240980,-500.0,0.00014573,2]
[399998158,1766998240989,-3579.95795526,0.00014598,2]
[399998159,1766998240998,-1221.58,0.0001473,2]
[399998160,1766998241007,-2346.26,0.00014738,2]
[399998161,1766998241017,-500.0,0.0001477,2]
[399998162,1766998241025,-250.0,0.00014802,2]
[399998163,1766998241035,-1489.47687703,0.00014802,2]
[399998164,1766998241045,-250.0,0.00014802,2]
[399998165,1766998241054,-195.0,0.00014823,2]
[399998166,1766998241064,-685.34,0.00014825,2]
[399998167,1766998241074,-3579.95795526,0.00014927,2]
[399998168,1766998241083,-362.92981829,0.00014976,2]
[399998169,1766998241093,-166.66,0.00015,2]
[399998170,1766998241102,-685.34,0.00015099,2]
[399998171,1766998241111,-201.0916735,0.000151,2]
[399998172,1766998241121,-151.0,0.00015108,2]
[399998173,1766998241130,-151.0,0.00015113,2]
[399998174,1766998241140,-151.0,0.00015113,2]
[399998175,1766998241150,-1000.0,0.00015121,2]
[399998176,1766998241159,-255.0,0.00015123,2]
[399998177,1766998241168,-151.0,0.00015127,2]
[399998178,1766998241177,-151.0,0.00015127,2]
[399998179,1766998241186,-328.61,0.00015234,2]
[399998180,1766998241195,-3579.95795526,0.00015256,2]
[399998181,1766998241204,-413.0,0.00015272,2]
[399998182,1766998241213,-685.34,0.00015373,2]
[399998183,1766998241222,-168.15,0.00015379,2]
[399998184,1766998241232,-3579.95795526,0.00015584,2]
[399998185,1766998241241,-166.66,0.00015619,2]
[399998186,1766998241250,-685.34,0.00015647,2]
[399998187,1766998241259,-505.95243998,0.00015668,2]
[399998188,1766998241268,-500.0,0.00015753,2]
[399998189,1766998241277,-1000.0,0.0001579,2]
[399998190,1766998241286,-3579.95795526,0.00015913,2]
[399998191,1766998241298,-685.39801869,0.00015921,2]
[399998192,1766998241308,-150.0,0.00015928,2]
[399998193,1766998241318,-500.0,0.00015973,2]
[399998194,1766998241327,-362.92981829,0.00016016,2]
[399998195,1766998241336,-151.0,0.00016113,2]
[399998196,1766998241345,-13945.6,0.00016116,2]
[399998197,1766998241354,-9999.99,0.00016116,2]
[399998198,1766998241363,-3170.15,0.00016116,2]
[399998199,1766998241372,-9999.99,0.00016116,2]
[399998200,1766998241382,-999.99,0.00016116,2]
[399998201,1766998241391,-49999.99,0.00016116,2]
[399998202,1766998241400,-1176.79,0.00016116,2]
[399998203,1766998241409,-4999.99,0.00016116,2]
[399998204,1766998241418,-9999.99,0.00016116,2]
[399998205,1766998241427,-160561.33,0.00016116,2]
[399998206,1766998241436,-9999.99,0.00016116,2]
[399998207,1766998241446,-499.99,0.00016116,2]
[399998208,1766998241455,-309.32,0.00016116,2]
[399998209,1766998241463,-29241.96,0.00016116,2]
[399998210,1766998241472,-150.99,0.00016116,2]
[399998211,1766998241482,-9999.99,0.00016116,2]
[399998212,1766998241491,-106533.43,0.00016116,2]
[399998213,1766998241500,-150.99,0.00016116,2]
[399998214,1766998241509,-620.0,0.00016149,2]
[399998215,1766998241518,-322.6107,0.00016149,2]
[399998216,1766998241527,-500.0,0.00016149,2]
[399998217,1766998241536,-500.0,0.00016149,2]
[399998218,1766998241544,-500.0,0.00016149,2]
[399998219,1766998241553,-500.0,0.00016149,2]
[399998220,1766998241562,-500.0,0.00016149,2]
[399998221,1766998241572,-500.0,0.00016149,2]
[399998222,1766998241585,-500.0,0.00016149,2]
[399998223,1766998241595,-500.0,0.00016149,2]
[399998224,1766998241604,-500.0,0.00016149,2]
[399998225,1766998241613,-200.0,0.00016149,2]
[399998226,1766998241623,-500.0,0.00016149,2]
[399998227,1766998241632,-500.0,0.00016149,2]
[399998228,1766998241643,-207.4,0.00016149,2]
[399998229,1766998241653,-500.0,0.00016149,2]
[399998230,1766998241662,-500.0,0.00016149,2]
[399998231,1766998241672,-215.0738,0.00016149,2]
[399998232,1766998241681,-341.21097673,0.00016149,2]
[399998233,1766998241690,-500.0,0.00016149,2]
[399998234,1766998241699,-250.0,0.00016149,2]
[399998235,1766998241709,-500.0,0.00016149,2]
[399998236,1766998241720,-223.0315306,0.00016149,2]
[399998237,1766998241729,-250.0,0.00016149,2]
[399998238,1766998241739,-500.0,0.00016149,2]
[399998239,1766998241748,-231.28369723,0.00016149,2]
[399998240,1766998241759,-250.0,0.00016149,2]
[399998241,1766998241768,-239.84119403,0.00016149,2]
[399998242,1766998241777,-250.0,0.00016149,2]
[399998243,1766998241787,-248.71531821,0.00016149,2]
[399998244,1766998241796,-250.0,0.00016149,2]
[399998245,1766998241805,-257.91778498,0.00016149,2]
[399998246,1766998241814,-250.0,0.00016149,2]
[399998247,1766998241823,-267.46074303,0.00016149,2]
[399998248,1766998241832,-250.0,0.00016149,2]
[399998249,1766998241840,-250.0,0.00016149,2]
[399998250,1766998241849,-250.0,0.00016149,2]
[399998251,1766998241858,-250.0,0.00016149,2]
[399998252,1766998241867,-250.0,0.00016149,2]
[399998253,1766998241876,-250.0,0.00016149,2]
[399998254,1766998241885,-319.51086651,0.00016149,2]
[399998255,1766998241893,-166.66,0.00016238,2]
[399998256,1766998241902,-3579.95795526,0.00016242,2]
[399998257,1766998241911,-10000.0,0.00016316,2]
[399998258,1766998241919,-423.82,0.00016349,2]
[399998259,1766998241928,-500.0,0.00016415,2]
[399998260,1766998241937,-500.0,0.00016438,2]
[399998261,1766998241946,-500.0,0.00016438,2]
[399998262,1766998241955,-500.0,0.00016438,2]
[399998263,1766998241964,-500.0,0.00016438,2]
[399998264,1766998241973,-500.0,0.00016438,2]
[399998265,1766998241982,-500.0,0.00016438,2]
[399998266,1766998241991,-460.0,0.00016438,2]
[399998267,1766998241999,-500.0,0.00016438,2]
[399998268,1766998242008,-500.0,0.00016438,2]
[399998269,1766998242017,-500.0,0.00016438,2]
[399998270,1766998242026,-500.0,0.00016438,2]
[399998271,1766998242034,-500.0,0.00016438,2]
[399998272,1766998242043,-500.0,0.00016438,2]
[399998273,1766998242052,-500.0,0.00016438,2]
[399998274,1766998242060,-500.0,0.00016438,2]
[399998275,1766998242070,-500.0,0.00016438,2]
[399998276,1766998242080,-500.0,0.00016438,2]
[399998277,1766998242089,-500.0,0.00016438,2]
[399998278,1766998242098,-500.0,0.00016438,2]
[399998279,1766998242108,-500.0,0.00016438,2]
[399998280,1766998242119,-500.0,0.00016438,2]
[399998281,1766998242129,-500.0,0.00016438,2]
[399998282,1766998242138,-500.0,0.00016438,2]
[399998283,1766998242147,-500.0,0.00016438,2]
[399998284,1766998242156,-500.0,0.00016438,2]
[399998285,1766998242165,-500.0,0.00016438,2]
[399998287,1766998242177,-500.0,0.00016521,2]
[399998288,1766998242187,-8909.79272503,0.00016571,2]
[399998289,1766998242196,-3579.95795526,0.00016571,2]
[399998291,1766998242204,-382.48973277,0.00016698,2]
[399998292,1766998242213,-150.0,0.00016699,2]
[399998294,1766998242222,-150.0,0.00016699,2]
[399998296,1766998242231,-150.0,0.00016699,2]
[399998297,1766998242239,-150.0,0.00016699,2]
[399998298,1766998242248,-150.0,0.00016699,2]
[399998299,1766998242257,-500.0,0.00016699,2]
[399998300,1766998242266,-500.0,0.00016699,2]
[399998301,1766998242275,-500.0,0.00016699,2]
[399998302,1766998242283,-500.0,0.00016699,2]
[399998303,1766998242292,-500.0,0.00016699,2]
[399998304,1766998242301,-500.0,0.00016699,2]
[399998305,1766998242311,-417.0,0.00016699,2]
[399998306,1766998242320,-150.0,0.00016699,2]
[399998307,1766998242329,-150.0,0.00016699,2]
[399998308,1766998242339,-165.21,0.00016712,2]
[399998309,1766998242351,-262.75232878,0.00016726,2]
[399998310,1766998242359,-150.0,0.00016726,2]
[399998311,1766998242371,-267.77127482,0.00016726,2]
[399998312,1766998242382,-209.80705324,0.00016726,2]
[399998313,1766998242392,-500.0,0.00016726,2]
[399998314,1766998242402,-500.0,0.00016726,2]
[399998315,1766998242412,-500.0,0.00016726,2]
[399998316,1766998242421,-500.0,0.00016726,2]
[399998317,1766998242430,-500.0,0.00016726,2]
[399998318,1766998242439,-500.0,0.00016726,2]
[399998319,1766998242449,-417.0,0.00016726,2]
[399998320,1766998242459,-214.291454,0.00016736,2]
[399998321,1766998242470,-207.4,0.00016743,2]
[399998322,1766998242481,-150.0,0.00016754,2]
[399998323,1766998242490,-500.0,0.00016754,2]
[399998324,1766998242500,-500.0,0.00016754,2]
[399998325,1766998242510,-500.0,0.00016754,2]
[399998326,1766998242519,-500.0,0.00016754,2]
[399998327,1766998242529,-500.0,0.00016754,2]
[399998328,1766998242538,-500.0,0.00016754,2]
[399998329,1766998242547,-417.0,0.00016754,2]
[399998330,1766998242556,-150.0,0.00016781,2]
[399998331,1766998242565,-500.0,0.00016781,2]
[399998332,1766998242577,-500.0,0.00016781,2]
[399998333,1766998242586,-500.0,0.00016781,2]
[399998334,1766998242595,-500.0,0.00016781,2]
[399998335,1766998242604,-500.0,0.00016781,2]
[399998336,1766998242614,-500.0,0.00016781,2]
[399998337,1766998242624,-417.0,0.00016781,2]
[399998338,1766998242633,-275.65062607,0.00016809,2]
[399998339,1766998242644,-500.0,0.00016809,2]
[399998340,1766998242655,-265.16707175,0.00016809,2]
[399998341,1766998242665,-500.0,0.00016809,2]
[399998342,1766998242674,-500.0,0.00016809,2]
[399998343,1766998242684,-158.19288149,0.00016809,2]
[399998344,1766998242693,-500.0,0.00016809,2]
[399998345,1766998242702,-417.0,0.00016809,2]
[399998346,1766998242711,-500.0,0.00016836,2]
[399998347,1766998242721,-500.0,0.00016836,2]
[399998348,1766998242730,-500.0,0.00016836,2]
[399998349,1766998242739,-500.0,0.00016836,2]
[399998350,1766998242748,-417.0,0.00016836,2]
[399998351,1766998242757,-166.66,0.00016857,2]
[399998352,1766998242766,-500.0,0.00016863,2]
[399998353,1766998242776,-453.68455195,0.00016863,2]
[399998354,1766998242785,-500.0,0.00016863,2]
[399998355,1766998242794,-500.0,0.00016863,2]
[399998356,1766998242803,-417.0,0.00016863,2]
[399998357,1766998242813,-500.0,0.00016891,2]
[399998358,1766998242822,-500.0,0.00016891,2]
[399998359,1766998242830,-500.0,0.00016891,2]
[399998360,1766998242840,-417.0,0.00016891,2]
[399998361,1766998242849,-8909.79272503,0.000169,2]
[399998362,1766998242858,-3579.95795526,0.000169,2]
[399998363,1766998242867,-220.76404125,0.000169,2]
[399998364,1766998242876,-606.56510944,0.000169,2]
[399998365,1766998242886,-2327.89115327,0.000169,2]
[399998366,1766998242895,-409.9706127,0.000169,2]